bitfinex-derivatives/quotes_SOLF0:USTF0_20241230
["timestamp","ask_amount","ask_price","bid_price","bid_amount"]
[1735572266646,4.02,186.86,186.7,4.02]
[1735572266846,4.02,186.86,186.73,2.6836]
[1735572267447,4.02,186.86,186.74,2.6834]
[1735572267646,4.02,186.86,186.75,1.5097]
[1735572268745,23.86842844,186.84,186.75,1.5097]
[1735572268944,4.02,186.86,186.7,27.88842844]
[1735572269145,4.02,186.86,186.73,23.86842844]
[1735572269745,4.02,186.86,186.75,2.6832]
[1735572269945,4.02,186.86,186.76,3.0496]
[1735572271554,27.88842844,186.87,186.76,3.0496]
[1735572272454,27.88842844,186.87,186.72,6.7038]
[1735572273253,4.02,186.87,186.73,23.86842844]
[1735572274253,27.88842844,186.87,186.73,23.86842844]
[1735572275146,23.86842844,186.83,186.67,1.499]
[1735572275451,23.86842844,186.8,186.67,2.991]
[1735572275754,4.02,186.79,186.67,2.991]
[1735572275950,23.86842844,186.8,186.67,2.991]
[1735572276252,4.02,186.78,186.69,2.6841]
[1735572277953,4.02,186.78,186.67,2.991]
[1735572278647,4.02,186.78,186.67,5.6754]
[1735572279148,4.02,186.78,186.67,2.991]
[1735572280048,4.02,186.78,186.68,2.6843]
[1735572281954,4.02,186.78,186.67,2.991]
[1735572282154,4.02,186.78,186.67,5.6755]
[1735572282750,4.02,186.78,186.69,2.6842]
[1735572283853,4.02,186.78,186.68,2.6844]
[1735572284458,4.02,186.78,186.67,5.6755]
[1735572286754,4.02,186.78,186.67,2.991]
[1735572287357,4.02,186.78,186.67,5.6755]
[1735572287758,4.02,186.78,186.67,2.991]
[1735572287958,4.02,186.78,186.68,2.6842]
[1735572288650,4.02,186.78,186.7,2.684]
[1735572289260,4.02,186.78,186.68,2.6843]
[1735572289459,4.02,186.78,186.67,2.991]
[1735572289858,4.02,186.78,186.67,5.6754]
[1735572290262,4.02,186.78,186.67,2.991]
[1735572290666,4.02,186.79,186.7,2.684]
[1735572291760,23.86842844,186.82,186.67,26.85942844]
[1735572291959,4.02,186.87,186.73,23.86842844]
[1735572292665,4.02,186.87,186.67,2.991]
[1735572292666,23.86842844,186.85,186.69,23.86842844]
[1735572292964,23.86842844,186.85,186.73,2.6835]
[1735572294156,23.86842844,186.85,186.69,23.86842844]
[1735572294361,4.02,186.87,186.68,4.02]
[1735572294560,23.86842844,186.84,186.68,4.02]
[1735572295054,23.86842844,186.84,186.69,23.86842844]
[1735572295366,23.86842844,186.84,186.73,2.6835]
[1735572296055,23.86842844,186.84,186.72,2.6837]
[1735572296257,23.86842844,186.84,186.69,23.86842844]
[1735572296557,14.90784814,186.81,186.7,2.684]
[1735572296760,18.92784814,186.81,186.69,14.90784814]
[1735572297166,18.92784814,186.81,186.73,2.6836]
[1735572297462,14.90784814,186.81,186.73,2.6836]
[1735572298055,14.90784814,186.81,186.69,14.90784814]
[1735572298268,14.90784814,186.81,186.72,2.6838]
[1735572300168,14.90784814,186.81,186.69,18.92784814]
[1735572300364,14.90784814,186.81,186.69,6.7042]
[1735572300967,14.90784814,186.78,186.67,2.991]
[1735572301360,4.02,186.8,186.67,2.991]
[1735572301666,18.92784814,186.81,186.67,2.991]
[1735572302066,14.90784814,186.81,186.67,2.991]
[1735572302263,14.90784814,186.78,186.67,2.991]
[1735572303161,14.90784814,186.78,186.68,2.6842]
[1735572303364,4.02,186.8,186.67,2.991]
[1735572303760,4.02,186.8,186.72,2.6837]
[1735572306168,4.02,186.8,186.74,2.6835]
[1735572306769,4.02,186.8,186.73,2.6836]
[1735572307166,14.90784814,186.84,186.73,14.90784814]
[1735572307372,14.90784814,186.84,186.77,2.683]
[1735572307566,18.92784814,186.87,186.74,1.6314]
[1735572307771,14.90784814,186.87,186.78,2.6828]
[1735572308166,18.92784814,186.9,186.76,14.90784814]
[1735572308365,148.30887191,186.92,186.82,2.6822]
[1735572308566,145.5173485,186.92,186.82,14.90784814]
[1735572308773,14.90784814,186.93,186.82,14.90784814]
[1735572308971,18.92784814,186.96,186.8,4.02]
[1735572309271,18.92784814,186.96,186.83,14.90784814]
[1735572309670,18.92784814,186.96,186.84,2.682]
[1735572309863,18.92784814,186.96,186.83,14.90784814]
[1735572310272,18.92784814,186.96,186.85,2.6818]
[1735572310567,18.92784814,186.96,186.84,1.6088]
[1735572310867,18.92784814,186.96,186.85,2.6819]
[1735572311166,14.90784814,186.93,186.8,14.90784814]
[1735572311373,14.90784814,186.9,186.8,14.90784814]
[1735572311566,18.92784814,186.9,186.8,14.90784814]
[1735572311967,18.92784814,186.9,186.8,17.59044814]
[1735572312967,18.92784814,186.9,186.8,2.6826]
[1735572313173,14.90784814,186.87,186.78,3.0746]
[1735572313380,14.90784814,186.87,186.75,1.5991]
[1735572313573,14.90784814,186.84,186.72,3.0746]
[1735572313773,4.0,186.83,186.72,5.7583]
[1735572313974,4.0,186.83,186.72,3.0746]
[1735572314168,18.90784814,186.87,186.74,14.90784814]
[1735572314370,4.0,186.88,186.75,27.83830501]
[1735572314666,4.0,186.91,186.76,1.6321]
[1735572314879,4.0,186.91,186.81,2.6824]
[1735572315069,23.83830501,186.93,186.78,23.83830501]
[1735572315262,4.0,186.92,186.78,23.83830501]
[1735572315463,4.0,186.92,186.83,2.6822]
[1735572315667,4.0,186.92,186.78,23.83830501]
[1735572316172,55.8,186.98,186.76,1.6321]
[1735572316173,23.83830501,186.96,186.81,23.83830501]
[1735572316375,4.0,186.98,186.84,23.83830501]
[1735572316576,27.83830501,186.99,186.85,1.6321]
[1735572316877,4.0,186.99,186.85,1.6321]
[1735572317070,23.83830501,187.02,186.85,1.6321]
[1735572317274,4.0,187.01,186.91,2.681]
[1735572317572,23.83830501,187.05,186.87,23.83830501]
[1735572317765,23.83830501,187.05,186.94,2.6806]
[1735572317766,4.0,187.04,186.94,2.6806]
[1735572317969,23.83830501,187.05,186.9,27.83830501]
[1735572318167,55.76,187.1,186.93,23.83830501]
[1735572318373,4.0,187.09,186.94,1.5533]
[1735572318967,4.0,187.09,186.97,2.6802]
[1735572319172,4.0,187.09,186.96,23.83830501]
[1735572319477,23.83830501,187.08,186.94,1.5533]
[1735572319773,23.83830501,187.05,186.94,1.5533]
[1735572319964,23.83830501,187.05,186.91,2.9628]
[1735572320571,4.0,187.09,186.91,2.9628]
[1735572320572,23.83830501,187.02,186.91,1.491]
[1735572320774,4.0,187.01,186.86,8.1584]
[1735572321274,4.0,187.01,186.86,5.4768]
[1735572322370,23.83830501,187.02,186.86,5.4768]
[1735572322567,4.0,187.01,186.89,2.6813]
[1735572322978,4.0,187.01,186.87,23.83830501]
[1735572323372,4.0,187.01,186.91,2.6811]
[1735572323577,4.0,187.01,186.87,23.83830501]
[1735572324572,23.83830501,186.99,186.86,1.4768]
[1735572325077,4.0,187.04,186.87,23.83830501]
[1735572325268,4.0,187.04,186.88,4.0]
[1735572325468,4.0,187.04,186.91,2.6809]
[1735572325677,4.0,187.04,186.9,23.83830501]
[1735572326373,4.0,187.04,186.92,2.6809]
[1735572327073,4.0,187.04,186.93,2.6807]
[1735572327270,23.83830501,187.06,186.93,2.6807]
[1735572327481,4.0,187.05,186.93,2.6807]
[1735572327871,4.0,187.05,186.9,23.83830501]
[1735572328076,23.83830501,187.03,186.87,23.83830501]
[1735572328280,23.83830501,187.0,186.86,1.4768]
[1735572328470,4.0,186.99,186.86,1.4768]
[1735572329675,23.83830501,186.97,186.85,1.4868]
[1735572329877,23.83830501,186.97,186.79,4.0]
[1735572330074,23.83830501,186.94,186.79,4.0]
[1735572330280,4.0,186.93,186.79,4.0]
[1735572330480,4.0,186.93,186.8,2.6826]
[1735572330680,4.0,186.93,186.78,27.83830501]
[1735572331876,4.0,186.93,186.83,2.6823]
[1735572332081,4.0,186.93,186.78,23.83830501]
[1735572332279,4.0,186.93,186.78,27.83830501]
[1735572332480,4.0,186.93,186.8,2.6828]
[1735572332679,4.0,186.93,186.78,27.83830501]
[1735572333072,23.83830501,186.91,186.77,4.6494]
[1735572333279,23.83830501,186.88,186.77,3.027]
[1735572333578,23.83830501,186.85,186.73,48.16922039]
[1735572333783,23.83830501,186.85,186.72,1.5143]
[1735572335476,23.83830501,186.85,186.72,4.1982]
[1735572335675,4.0,186.84,186.72,4.1982]
[1735572335872,4.0,186.84,186.72,1.5143]
[1735572337183,23.83830501,186.82,186.7,2.9966]
[1735572337484,23.83830501,186.85,186.7,2.9966]
[1735572337677,23.83830501,186.85,186.71,4.2172]
[1735572337678,4.0,186.84,186.71,4.2172]
[1735572337881,4.0,186.84,186.71,1.5331]
[1735572339284,55.74,186.94,186.71,1.5331]
[1735572339484,23.83830501,186.87,186.71,1.5331]
[1735572339679,4.0,186.86,186.71,1.5331]
[1735572339876,4.0,186.86,186.71,4.2171]
[1735572340080,4.0,186.89,186.75,23.83830501]
[1735572340285,4.0,186.89,186.78,23.83830501]
[1735572340486,4.0,186.89,186.8,2.6826]
[1735572340683,4.0,186.91,186.79,4.8462]
[1735572340880,4.0,186.92,186.79,4.8462]
[1735572341381,4.0,186.92,186.81,23.83830501]
[1735572341587,4.0,186.92,186.82,2.6825]
[1735572341881,4.0,186.95,186.79,4.8462]
[1735572342085,4.0,186.95,186.83,2.6823]
[1735572342883,55.76,187.06,186.84,27.83830501]
[1735572343083,23.83830501,187.02,186.84,27.83830501]
[1735572343276,4.0,187.03,186.87,23.83830501]
[1735572343476,4.0,187.02,186.9,2.6813]
[1735572343786,4.0,187.02,186.88,4.6129]
[1735572343984,4.0,187.02,186.89,2.6815]
[1735572345086,4.0,187.02,186.88,4.6129]
[1735572345489,27.83830501,187.02,186.88,4.6129]
[1735572346088,4.0,187.02,186.88,4.6129]
[1735572346279,23.83830501,187.05,186.88,4.6129]
[1735572346486,4.0,187.04,186.94,2.6807]
[1735572346784,4.0,187.04,186.92,4.0]
[1735572346995,23.83830501,187.15,187.01,2.6796]
[1735572347188,23.83830501,187.15,187.02,3.143]
[1735572347484,4.0,187.14,187.02,3.143]
[1735572347887,23.83830501,187.12,186.97,1.6194]
[1735572348085,23.83830501,187.09,186.97,1.6194]
[1735572348291,4.0,187.08,186.94,3.1393]
[1735572348693,23.83830501,187.06,186.94,3.1393]
[1735572350887,23.83830501,187.11,186.94,3.1393]
[1735572351092,4.0,187.1,186.94,3.1393]
[1735572351794,55.74,187.18,186.94,3.1393]
[1735572351795,55.74,187.18,186.96,23.83830501]
[1735572351996,23.83830501,187.14,186.96,23.83830501]
[1735572352192,4.0,187.13,186.99,23.83830501]
[1735572352393,4.0,187.13,187.0,1.6041]
[1735572352589,55.74,187.18,187.0,1.6041]
[1735572352795,4.0,187.17,187.0,1.6041]
[1735572352998,23.83830501,187.16,187.0,4.284]
[1735572353194,23.83830501,187.13,187.0,1.6041]
[1735572353388,23.83830501,187.13,186.97,4.0]
[1735572354700,4.0,187.12,186.97,4.0]
[1735572355401,4.0,187.13,186.97,4.0]
[1735572355601,4.0,187.12,186.99,23.83830501]
[1735572355797,4.0,187.13,186.99,23.83830501]
[1735572356102,4.0,187.14,186.99,23.83830501]
[1735572356699,4.0,187.14,187.02,2.6795]
[1735572356899,4.0,187.14,186.97,4.0]
[1735572357099,4.0,187.14,186.99,23.83830501]
[1735572357298,27.83830501,187.14,186.99,23.83830501]
[1735572357505,27.83830501,187.14,186.96,23.83830501]
[1735572357895,27.83830501,187.14,186.97,2.6803]
[1735572359308,27.83830501,187.14,186.98,2.6802]
[1735572359511,27.83830501,187.14,186.96,23.83830501]
[1735572359704,4.0,187.13,186.96,23.83830501]
[1735572359905,4.0,187.13,187.0,2.6799]
[1735572360615,4.0,187.13,186.97,2.6803]
[1735572360911,4.0,187.13,186.96,23.83830501]
[1735572361099,4.0,187.12,186.98,2.6801]
[1735572361503,4.0,187.12,186.96,23.83830501]
[1735572361698,23.83830501,187.11,186.95,1.6041]
[1735572361897,23.83830501,187.08,186.95,1.6041]
[1735572362301,23.83830501,187.05,186.94,3.1393]
[1735572362507,4.0,187.04,186.94,3.1393]
[1735572363103,4.0,187.1,186.96,23.83830501]
[1735572363303,23.83830501,187.14,187.01,2.6797]
[1735572363610,4.0,187.14,186.99,23.83830501]
[1735572364501,23.83830501,187.17,186.99,23.83830501]
[1735572364906,4.0,187.16,187.02,23.83830501]
[1735572365206,4.0,187.16,187.03,4.6582]
[1735572367201,23.83830501,187.14,187.03,3.0396]
[1735572367509,23.83830501,187.11,186.96,23.83830501]
[1735572367808,4.0,187.1,186.95,5.5672]
[1735572368308,23.83830501,187.05,186.92,1.5147]
[1735572368500,4.0,187.04,186.92,1.5147]
[1735572368696,23.83830501,187.02,186.92,1.5147]
[1735572370605,55.74,187.18,186.93,23.83830501]
[1735572370807,23.83830501,187.1,186.96,23.83830501]
[1735572371012,4.0,187.09,186.96,23.83830501]
[1735572371205,4.0,187.09,186.93,23.83830501]
[1735572371711,23.83830501,187.07,186.93,23.83830501]
[1735572371906,23.83830501,187.07,186.92,1.5147]
[1735572372611,4.0,187.06,186.92,1.5147]
[1735572372913,23.83830501,187.04,186.92,1.5147]
[1735572374117,23.83830501,187.01,186.89,1.5672]
[1735572374315,4.0,187.0,186.89,1.5672]
[1735572377606,4.0,187.0,186.87,1.5233]
[1735572377920,23.83830501,186.98,186.86,1.5529]
[1735572379215,4.0,187.0,186.86,1.5529]
[1735572380115,4.0,187.0,186.84,23.83830501]
[1735572380416,4.0,187.0,186.84,25.40680501]
[1735572380919,23.83830501,187.01,186.85,2.682]
[1735572381111,4.0,187.0,186.87,23.83830501]
[1735572381614,4.0,187.0,186.88,1.4882]
[1735572381806,23.83830501,187.04,186.88,4.1698]
[1735572382011,4.0,187.03,186.88,1.4882]
[1735572382216,23.83830501,187.01,186.84,25.40680501]
[1735572383007,23.83830501,186.98,186.84,1.5685]
[1735572383212,4.0,186.97,186.84,1.5685]
[1735572384718,4.0,186.99,186.84,29.40680501]
[1735572387117,4.0,186.99,186.84,32.08900501]
[1735572388219,4.0,186.99,186.84,29.40680501]
[1735572388821,27.83830501,186.99,186.84,1.5685]
[1735572389015,23.83830501,186.96,186.84,1.5685]
[1735572389220,4.0,186.99,186.84,1.5685]
[1735572389420,4.0,186.99,186.84,25.40680501]
[1735572389621,4.0,186.99,186.84,28.08900501]
[1735572389923,4.0,186.99,186.83,1.5302]
[1735572389924,23.83830501,186.93,186.76,53.61570242]
[1735572390122,4.0,186.92,186.78,3.1791]
[1735572390319,23.83830501,186.9,186.78,3.1791]
[1735572390723,23.83830501,186.9,186.76,29.77739741]
[1735572391024,23.83830501,186.87,186.72,7.1952]
[1735572391323,4.0,186.86,186.72,7.1952]
[1735572391820,4.0,186.86,186.72,3.1952]
[1735572392027,23.83830501,186.84,186.66,23.83830501]
[1735572392219,23.83830501,186.84,186.67,3.1952]
[1735572392819,4.0,186.86,186.67,3.1952]
[1735572392820,23.83830501,186.81,186.67,3.1952]
[1735572393019,4.0,186.8,186.67,3.1952]
[1735572393221,4.0,186.79,186.67,4.7709]
[1735572393519,4.0,186.8,186.69,23.83830501]
[1735572394021,4.0,186.8,186.71,2.684]
[1735572394221,4.0,186.8,186.69,23.83830501]
[1735572394425,4.0,186.8,186.71,2.6841]
[1735572394727,4.0,186.82,186.69,23.83830501]
[1735572395626,4.0,186.82,186.72,2.6839]
[1735572395827,4.0,186.82,186.7,4.0]
[1735572396227,4.0,186.82,186.71,2.6841]
[1735572396434,4.0,186.82,186.7,4.0]
[1735572397826,4.0,186.82,186.72,23.83830501]
[1735572398027,4.0,186.82,186.72,26.52220501]
[1735572398828,4.0,186.82,186.72,23.83830501]
[1735572399031,4.0,186.82,186.7,4.0]
[1735572399726,4.0,186.85,186.72,23.83830501]
[1735572400129,4.0,186.85,186.7,4.0]
[1735572400725,23.83830501,186.84,186.69,23.83830501]
[1735572403128,23.83830501,186.78,186.67,4.7709]
[1735572403430,4.0,186.77,186.67,3.1952]
[1735572404028,23.83830501,186.75,186.67,3.1952]
[1735572404427,23.83830501,186.72,186.57,53.61570242]
[1735572404730,23.83830501,186.84,186.57,53.61570242]
[1735572404731,23.83830501,186.69,186.58,3.1997]
[1735572404933,4.0,186.68,186.58,3.1997]
[1735572405131,23.83830501,186.66,186.57,29.77739741]
[1735572405830,23.83830501,186.66,186.56,24.00278036]
[1735572406231,23.83830501,186.63,186.56,24.00278036]
[1735572406431,4.0,186.62,186.56,24.00278036]
[1735572407033,23.83830501,186.6,186.56,24.00278036]
[1735572407536,4.0,186.59,186.56,24.00278036]
[1735572407928,4.0,186.64,186.56,24.00278036]
[1735572408229,4.0,186.65,186.56,24.00278036]
[1735572408425,23.83830501,186.64,186.56,24.00278036]
[1735572412234,23.83830501,186.66,186.56,24.00278036]
[1735572412530,4.0,186.65,186.56,24.00278036]
[1735572418641,4.0,186.64,186.56,24.00278036]
[1735572419435,79.61830501,186.7,186.56,24.00278036]
[1735572419638,4.0,186.69,186.57,3.0128]
[1735572420731,4.0,186.69,186.56,24.00278036]
[1735572420732,23.83830501,186.67,186.56,24.00278036]
[1735572420938,23.83830501,186.64,186.56,24.00278036]
[1735572421231,4.0,186.63,186.56,24.00278036]
[1735572421432,23.83830501,186.61,186.56,24.00278036]
[1735572424843,23.83830501,186.57,186.48,0.20937]
[1735572425143,23.83830501,186.58,186.48,0.20937]
[1735572425144,23.83830501,186.53,186.48,0.20937]
[1735572425534,4.0,186.56,186.48,0.20937]
[1735572427138,23.83830501,186.64,186.49,23.83830501]
[1735572427543,4.0,186.63,186.52,23.83830501]
[1735572427849,4.0,186.63,186.53,4.5975]
[1735572433849,79.61830501,186.7,186.53,4.5975]
[1735572434146,4.0,186.69,186.55,26.52460501]
[1735572434348,4.0,186.68,186.55,26.52460501]
[1735572434551,4.0,186.68,186.55,23.83830501]
[1735572435055,4.0,186.68,186.53,4.5975]
[1735572435249,23.83830501,186.67,186.53,4.5975]
[1735572435748,23.83830501,186.67,186.53,93.92969225]
[1735572436746,23.83830501,186.67,186.53,4.5975]
[1735572440052,4.0,186.66,186.53,4.5975]
[1735572441144,4.0,186.65,186.53,4.5975]
[1735572441847,4.0,186.66,186.53,4.5975]
[1735572442447,4.0,186.66,186.53,7.2841]
[1735572442750,4.0,186.66,186.53,518.25760541]
[1735572442953,23.83830501,186.64,186.53,518.25760541]
[1735572443450,4.0,186.66,186.53,518.25760541]
[1735572443651,4.0,186.66,186.53,4.5975]
[1735572444150,4.0,186.66,186.53,28.43580501]
[1735572444352,4.0,186.66,186.54,2.6865]
[1735572444553,4.0,186.66,186.53,28.43580501]
[1735572445050,4.0,186.66,186.53,31.12240501]
[1735572445252,4.0,186.66,186.53,7.2841]
[1735572445751,4.0,186.66,186.53,185.94848451]
[1735572446256,4.0,186.66,186.55,2.6863]
[1735572446445,23.83830501,186.67,186.55,2.6863]
[1735572446643,23.83830501,186.67,186.53,187.26188451]
[1735572446644,4.0,186.66,186.53,211.10018952]
[1735572446850,4.0,186.67,186.57,2.6861]
[1735572447049,4.0,186.67,186.56,23.83830501]
[1735572447250,4.0,186.67,186.53,211.10018952]
[1735572447452,4.0,186.67,186.53,187.26188451]
[1735572447747,4.0,186.67,186.54,89.33219225]
[1735572448451,4.0,186.67,186.54,92.01859225]
[1735572448650,4.0,186.67,186.53,38.37489741]
[1735572449053,4.0,186.67,186.54,2.6865]
[1735572449753,4.0,186.67,186.54,7.32547891]
[1735572451156,27.83830501,186.67,186.54,4.63897891]
[1735572451350,23.83830501,186.64,186.53,4.5975]
[1735572454756,23.83830501,186.61,186.53,4.5975]
[1735572454957,4.0,186.6,186.53,4.5975]
[1735572455951,4.0,186.6,186.53,3.0904]
[1735572456155,23.83830501,186.58,186.46,1.61]
[1735572457562,4.0,186.6,186.46,1.61]
[1735572460160,23.83830501,186.58,186.46,1.61]
[1735572460759,4.0,186.6,186.46,1.61]
[1735572462258,14.947257,186.58,186.46,1.61]
[1735572466469,4.0,186.57,186.46,1.61]
[1735572467561,14.947257,186.55,186.45,3.1412]
[1735572469570,4.0,186.54,186.45,3.1412]
[1735572470763,4.0,186.56,186.45,3.1412]
[1735572471465,4.0,186.56,186.47,14.947257]
[1735572472671,14.947257,186.61,186.5,14.947257]
[1735572472876,4.0,186.6,186.5,14.947257]
[1735572474073,4.0,186.6,186.49,1.5757]
[1735572474268,4.0,186.6,186.49,16.522957]
[1735572474469,14.947257,186.61,186.49,16.522957]
[1735572474773,4.0,186.6,186.49,16.522957]
[1735572478270,14.947257,186.58,186.45,3.1412]
[1735572478480,14.947257,186.55,186.45,3.1412]
[1735572478667,4.0,186.54,186.45,3.1412]
[1735572479867,14.947257,186.52,186.45,3.1412]
[1735572480479,14.947257,186.52,186.41,1.6028]
[1735572480675,14.947257,186.52,186.39,14.947257]
[1735572480870,4.0,186.54,186.39,14.947257]
[1735572480871,14.947257,186.49,186.39,14.947257]
[1735572481177,4.0,186.48,186.39,14.947257]
[1735572482373,4.0,186.48,186.38,3.35577]
[1735572482678,14.947257,186.52,186.39,14.947257]
[1735572482877,4.0,186.51,186.42,14.947257]
[1735572483072,4.0,186.52,186.43,1.6189]
[1735572483579,4.0,186.52,186.45,14.947257]
[1735572483771,4.0,186.52,186.46,3.0458]
[1735572484888,4.0,186.55,186.46,3.0458]
[1735572487479,4.0,186.57,186.46,5.7335]
[1735572487670,4.0,186.57,186.46,3.0458]
[1735572489689,14.947257,186.55,186.46,3.0458]
[1735572490978,4.0,186.57,186.46,3.0458]
[1735572491474,4.0,186.57,186.46,5.7334]
[1735572491674,4.0,186.57,186.46,3.0458]
[1735572494586,14.947257,186.55,186.46,3.0458]
[1735572497184,18.947257,186.57,186.46,3.0458]
[1735572498589,6.10876907,186.56,186.46,3.0458]
[1735572498887,14.14174503,186.56,186.46,3.0458]
[1735572499094,14.947257,186.53,186.43,1.6189]
[1735572500595,14.947257,186.5,186.43,1.6189]
[1735572500787,4.0,186.49,186.43,1.6189]
[1735572503095,4.0,186.55,186.43,1.6189]
[1735572503990,14.947257,186.56,186.43,1.6189]
[1735572503991,14.947257,186.56,186.45,14.947257]
[1735572504893,4.0,186.57,186.45,14.947257]
[1735572505092,4.0,186.57,186.47,2.6876]
[1735572505693,14.947257,186.59,186.43,1.6189]
[1735572505900,14.947257,186.56,186.43,16.566157]
[1735572506586,14.947257,186.56,186.43,19.254357]
[1735572507603,14.947257,186.56,186.44,2.688]
[1735572507896,4.0,186.58,186.43,1.6189]
[1735572508090,14.947257,186.53,186.43,1.6189]
[1735572508690,4.0,186.52,186.43,1.6189]
[1735572511197,4.0,186.52,186.43,4.307]
[1735572511394,4.0,186.52,186.43,1.6189]
[1735572513006,14.947257,186.55,186.43,1.6189]
[1735572513205,18.947257,186.55,186.43,1.6189]
[1735572514208,4.0,186.55,186.43,1.6189]
[1735572514514,14.947257,186.56,186.44,14.947257]
[1735572514809,14.947257,186.59,186.44,18.947257]
[1735572515010,4.0,186.58,186.44,18.947257]
[1735572515916,4.0,186.58,186.47,14.947257]
[1735572516210,14.947257,186.59,186.47,14.947257]
[1735572517111,145.5173485,186.71,186.5,14.947257]
[1735572517307,14.947257,186.63,186.51,4.6353]
[1735572517509,14.947257,186.63,186.52,2.6868]
[1735572518111,14.947257,186.63,186.51,4.6353]
[1735572518310,14.947257,186.6,186.51,4.6353]
[1735572518515,14.947257,186.57,186.45,44.72465441]
[1735572518709,18.947257,186.57,186.46,4.6265]
[1735572519509,18.947257,186.57,186.46,7.3142]
[1735572519810,18.947257,186.57,186.46,4.6265]
[1735572520409,14.947257,186.54,186.46,4.6265]
[1735572523719,18.947257,186.57,186.46,4.6265]
[1735572525420,18.927257,186.57,186.46,4.6265]
[1735572525622,3.98,186.57,186.48,14.947257]
[1735572526323,14.947257,186.6,186.48,14.947257]
[1735572526520,18.927257,186.6,186.48,14.947257]
[1735572526719,14.947257,186.6,186.48,14.947257]
[1735572526922,3.98,186.61,186.52,2.6868]
[1735572527125,3.98,186.61,186.49,3.98]
[1735572527423,3.98,186.61,186.52,14.947257]
[1735572528619,3.98,186.61,186.52,17.634057]
[1735572529016,3.98,186.61,186.52,14.947257]
[1735572529423,3.98,186.65,186.52,14.947257]
[1735572529618,3.98,186.65,186.53,2.6866]
[1735572530124,3.98,186.65,186.54,4.7584]
[1735572530723,3.98,186.68,186.56,2.6863]
[1735572530923,55.86,186.74,186.55,18.927257]
[1735572530924,14.947257,186.72,186.58,14.947257]
[1735572531121,3.98,186.71,186.58,14.947257]
[1735572531327,8.0424459,186.73,186.64,14.947257]
[1735572531528,8.0424459,186.76,186.65,4.7116]
[1735572531935,145.5173485,186.77,186.65,4.7116]
[1735572532424,145.5173485,186.87,186.65,7.3965]
[1735572532622,14.947257,186.79,186.65,7.3965]
[1735572532826,14.947257,186.79,186.66,3.98]
[1735572533036,22.97918625,186.79,186.66,3.98]
[1735572533325,14.947257,186.76,186.65,4.7116]
[1735572534134,14.947257,186.74,186.65,4.7116]
[1735572535531,18.927257,186.74,186.61,14.947257]
[1735572535727,8.00332051,186.79,186.61,14.947257]
[1735572535933,151.60471432,186.88,186.7,14.947257]
[1735572536140,14.947257,186.84,186.73,14.947257]
[1735572537825,3.98,186.87,186.69,3.98]
[1735572537826,14.947257,186.81,186.7,14.947257]
[1735572538032,3.98,186.8,186.69,3.98]
[1735572538437,14.947257,186.78,186.67,19.590257]
[1735572539729,14.947257,186.78,186.67,4.643]
[1735572540436,23.86671523,186.79,186.67,4.643]
[1735572540931,3.98,186.8,186.67,4.643]
[1735572541131,3.98,186.82,186.69,23.86671523]
[1735572541836,3.98,186.86,186.72,23.86671523]
[1735572542031,23.86671523,186.91,186.75,23.86671523]
[1735572542235,3.98,186.9,186.75,23.86671523]
[1735572542529,3.98,186.9,186.76,7.3441]
[1735572542737,3.98,186.92,186.78,23.86671523]
[1735572543335,3.98,186.92,186.79,2.6829]
[1735572544035,1.99427663,186.94,186.81,23.86671523]
[1735572544339,3.98,186.96,186.84,23.86671523]